bitfinex/quotes_SOLUSD_20240925
["timestamp","ask_amount","ask_price","bid_price","bid_amount"]
[1727297156431,6.634,150.74,150.69,6.7005048]
[1727297156769,0.25098,150.73,150.69,22.5780048]
[1727297158547,6.88548,150.73,150.69,22.5780048]
[1727297159863,0.12549,150.73,150.69,22.5780048]
[1727297160157,0.12549,150.73,150.7,6.6354]
[1727297165769,6.75989,150.73,150.7,6.6354]
[1727297165969,6.75989,150.73,150.69,15.9423048]
[1727297166146,6.75989,150.73,150.69,22.5782048]
[1727297166463,6.6348,150.72,150.69,15.9423048]
[1727297169373,6.75999,150.73,150.69,22.5783048]
[1727297169677,0.12549,150.73,150.71,6.6352]
[1727297169973,0.12549,150.73,150.7,16.5891]
[1727297170178,0.12549,150.73,150.7,23.2246]
[1727297171876,0.12549,150.74,150.72,16.5869]
[1727297172176,6.6328,150.77,150.73,6.634]
[1727297173276,0.12549,150.76,150.73,6.634]
[1727297173459,0.12549,150.76,150.72,16.5869]
[1727297173663,0.12549,150.76,150.72,23.2215]
[1727297174849,6.75859,150.76,150.72,23.2215]
[1727297178566,0.12549,150.76,150.72,16.5869]
[1727297178767,6.75819,150.77,150.73,6.6343]
[1727297179272,0.2471821,150.8,150.75,6.6331]
[1727297179472,0.2471821,150.8,150.75,13.52027119]
[1727297179675,0.2471821,150.8,150.76,23.2152]
[1727297179977,6.8785821,150.8,150.76,23.2152]
[1727297181479,0.12549,150.79,150.76,23.2152]
[1727297193074,0.2471821,150.8,150.77,14.84676809]
[1727297193273,0.2471821,150.8,150.79,35.81517119]
[1727297201407,0.2471821,150.8,150.79,22.2949]
[1727297207796,0.2471821,150.8,150.79,23.6210384]
[1727297208783,0.2471821,150.8,150.79,22.2949]
[1727297210405,0.2471821,150.8,150.79,35.81517119]
[1727297212091,0.2471821,150.8,150.79,37.14130848]
[1727297212508,0.2471821,150.8,150.79,60.91819252]
[1727297212700,0.2471821,150.8,150.79,67.51119252]
[1727297215505,0.2471821,150.8,150.79,66.18505519]
[1727297217598,0.2471821,150.8,150.79,52.664784]
[1727297217800,0.2471821,150.8,150.79,66.18505519]
[1727297220836,0.2471821,150.8,150.79,67.51094826]
[1727297226515,0.2471821,150.84,150.83,6.6299]
[1727297226697,0.2471821,150.84,150.83,21.47590415]
[1727297227091,0.2471821,150.89,150.83,61.50198815]
[1727297227320,0.2471821,150.89,150.88,20.14797119]
[1727297227501,0.2471821,150.89,150.88,21.47338714]
[1727297227703,0.2471821,150.89,150.88,6.6277]
[1727297242343,0.2471821,150.89,150.87,16.5699]
[1727297243522,0.2471821,150.89,150.83,16.2492]
[1727297243705,0.2471821,150.89,150.86,30.09157119]
[1727297243907,0.2471821,150.89,150.88,6.6277]
[1727297251830,0.2471821,150.89,150.87,6.6281]
[1727297269637,0.2471821,150.89,150.88,6.6277]
[1727297270648,0.2471821,150.89,150.88,21.47340104]
[1727297274035,0.2471821,150.89,150.88,37.29430104]
[1727297274238,0.2471821,150.89,150.88,61.07118504]
[1727297274446,0.2471821,150.89,150.88,67.51758504]
[1727297274641,0.2471821,150.89,150.88,66.19215519]
[1727297279349,0.2471821,150.89,150.88,67.51725138]
[1727297280161,0.2471821,150.89,150.88,66.19215519]
[1727297280359,0.2471821,150.89,150.88,52.671884]
[1727297280667,0.2471821,150.89,150.87,6.6278]
[1727297282858,0.2471821,150.89,150.86,16.5713]
[1727297283052,0.2471821,150.89,150.88,6.6277]
[1727297284439,0.2471821,150.89,150.87,6.6279]
[1727297284947,0.2471821,150.89,150.86,16.5713]
[1727297285142,0.2471821,150.89,150.87,6.6281]
[1727297287448,0.2471821,150.89,150.87,7.95356106]
[1727297289264,0.2471821,150.89,150.87,6.6281]
[1727297289449,0.2471821,150.89,150.87,7.95356131]
[1727297292752,0.2471821,150.89,150.87,21.4738325]
[1727297293968,0.2471821,150.89,150.88,6.6277]
[1727297295371,0.2471821,150.89,150.87,6.628]
[1727297299075,0.2471821,150.89,150.87,7.95345918]
[1727297299859,0.2471821,150.89,150.87,6.628]
[1727297320024,6.6285,150.87,150.83,23.2036]
[1727297320221,6.6292,150.85,150.81,6.6308]
[1727297320599,6.6296,150.84,150.8,23.2087]
[1727297320792,0.12549,150.84,150.81,6.6306]
[1727297323199,6.6294,150.85,150.81,6.6306]
[1727297327022,6.75499,150.84,150.8,23.2085]
[1727297330810,6.63,150.83,150.79,6.6314]
[1727297331505,0.12549,150.83,150.8,7.95731303]
[1727297332710,0.12549,150.83,150.8,6.6312]
[1727297336812,6.75549,150.83,150.8,6.6312]
[1727297343245,6.75529,150.84,150.8,6.6312]
[1727297344851,0.12549,150.84,150.79,16.5791]
[1727297345056,0.12549,150.84,150.82,6.6302]
[1727297345443,0.12549,150.84,150.81,23.2077]
[1727297346429,6.75509,150.84,150.81,16.577]
[1727297370787,0.12549,150.84,150.81,16.577]
[1727297371075,0.12549,150.84,150.81,23.2077]
[1727297398391,6.75509,150.84,150.81,23.2077]
[1727297409903,0.12549,150.84,150.82,6.6304]
[1727297410087,0.12549,150.84,150.81,23.2078]
[1727297425521,0.2471821,150.89,150.82,1.32599633]
[1727297425707,0.2471821,150.89,150.84,13.52027119]
[1727297426023,6.8745821,150.89,150.85,24.52699728]
[1727297426200,0.2471821,150.89,150.85,17.89809728]
[1727297426402,0.2471821,150.89,150.86,6.6286]
[1727297426617,0.2471821,150.89,150.86,13.52027119]
[1727297426800,0.2471821,150.89,150.88,20.14797119]
[1727297428118,0.2471821,150.89,150.88,6.6277]
[1727297430902,0.2471821,150.89,150.87,23.1981]
[1727297431119,0.2471821,150.89,150.88,6.6277]
[1727297431501,0.2471821,150.89,150.87,16.57]
[1727297431824,6.8744821,150.89,150.85,6.6289]
[1727297436725,0.2471821,150.89,150.86,6.6286]
[1727297437604,0.12549,150.88,150.85,6.6289]
[1727297437803,6.6287,150.86,150.82,6.6303]
[1727297438102,6.6296,150.84,150.81,16.5762]
[1727297438625,0.12549,150.84,150.81,23.2069]
[1727297439338,0.12549,150.85,150.82,7.95622656]
[1727297440717,6.75429,150.86,150.82,7.95622656]
[1727297440718,0.12549,150.86,150.83,6.6299]
[1727297444531,6.6287,150.86,150.82,6.6303]
[1727297444712,0.12549,150.85,150.82,7.95614141]
[1727297445534,0.12549,150.85,150.82,6.6303]
[1727297445924,6.6287,150.86,150.83,1.32584128]
[1727297446315,0.12549,150.86,150.83,7.95574128]
[1727297447015,0.12549,150.86,150.83,6.6299]
[1727297449344,0.12549,150.86,150.81,13.52027119]
[1727297449521,6.8745821,150.89,150.85,6.6288]
[1727297449722,6.8745821,150.89,150.85,6.629]
[1727297450939,0.12549,150.88,150.85,6.629]
[1727297468048,0.25098,150.88,150.83,16.5744]
[1727297468363,0.25098,150.88,150.82,15.3809]
[1727297468364,6.6291,150.85,150.82,15.3809]
[1727297468762,0.12549,150.85,150.82,23.33708284]
[1727297471746,6.75459,150.85,150.82,15.3809]
[1727297473146,6.6296,150.84,150.82,15.3809]
[1727297473936,6.75469,150.85,150.82,15.3809]
[1727297476861,0.12549,150.85,150.8,16.5774]
[1727297477056,6.6302,150.83,150.79,6.6315]
[1727297482269,0.12549,150.82,150.74,33.0459]
[1727297482553,6.6322,150.78,150.74,39.6796]
[1727297485137,0.12549,150.77,150.74,39.6796]
[1727297488174,0.12549,150.77,150.74,23.2176]
[1727297491265,0.12549,150.75,150.73,0.2471821]
[1727297491973,6.88488,150.74,150.73,0.2471821]
[1727297492677,50.661764,150.74,150.73,0.2471821]
[1727297501377,0.12549,150.69,150.68,0.3119869]
[1727297501685,6.76159,150.69,150.68,0.3119869]
[1727297502287,0.12549,150.69,150.68,0.3119869]
[1727297503768,0.12549,150.69,150.68,6.9484869]
[1727297503967,6.75999,150.73,150.69,6.6361]
[1727297504176,0.12549,150.71,150.68,6.9483869]
[1727297505162,0.25098,150.71,150.68,0.3119869]
[1727297505481,0.12549,150.7,150.68,0.3119869]
[1727297512593,0.25098,150.7,150.68,0.3119869]
[1727297512798,6.88668,150.7,150.68,0.3119869]
[1727297516902,6.6344,150.73,150.69,23.226]
[1727297517293,6.635,150.72,150.69,16.5902]
[1727297518088,0.12549,150.71,150.69,16.5902]
[1727297520391,0.12549,150.71,150.68,6.9483869]
[1727297522702,0.12549,150.71,150.69,1.32714691]
[1727297522904,0.12549,150.72,150.69,7.96324691]
[1727297523093,0.12549,150.72,150.69,6.6361]
[1727297523609,0.12549,150.72,150.68,16.9032869]
[1727297523904,0.12549,150.72,150.7,6.6356]
[1727297525011,0.12549,150.72,150.69,6.636]
[1727297525194,6.76029,150.72,150.69,6.636]
[1727297525388,6.76029,150.72,150.68,16.9032869]
[1727297525707,0.12549,150.7,150.68,16.9032869]
[1727297525916,0.12549,150.7,150.68,23.5397869]
[1727297528899,0.12549,150.7,150.68,0.3119869]
[1727297529215,6.88708,150.69,150.68,0.3119869]
[1727297531695,50.663964,150.69,150.68,0.3119869]
[1727297531898,50.663964,150.69,150.64,0.2471821]
[1727297531899,0.12549,150.65,150.64,0.2471821]
[1727297545334,6.76339,150.65,150.64,0.2471821]
[1727297545537,0.25098,150.61,150.59,0.4203184]
[1727297545739,6.89058,150.61,150.59,0.4203184]
[1727297546340,0.25098,150.61,150.59,0.4203184]
[1727297546639,0.12549,150.61,150.59,0.4203184]
[1727297548215,6.6386,150.64,150.6,6.6401]
[1727297548420,0.12549,150.63,150.6,6.6401]
[1727297550128,6.76449,150.63,150.59,7.0607184]
[1727297550332,0.12549,150.62,150.59,7.0607184]
[1727297551026,0.25098,150.62,150.59,0.4203184]
[1727297551420,0.12549,150.6,150.59,0.4203184]
[1727297556035,0.12549,150.62,150.59,7.0607184]
[1727297556215,26.93550101,150.66,150.59,16.4987184]
[1727297556414,26.93550101,150.66,150.6,16.5996]
[1727297556415,6.6379,150.65,150.6,16.5996]
[1727297556614,6.6379,150.65,150.61,6.6395]
[1727297557542,0.12549,150.64,150.61,6.6395]
[1727297559937,0.12549,150.64,150.61,7.96729163]
[1727297561530,0.12549,150.64,150.61,6.6395]
[1727297565440,0.12549,150.64,150.61,7.96728962]
[1727297565633,0.25098,150.65,150.62,6.6391]
[1727297565960,0.12549,150.65,150.62,6.6391]
[1727297573883,0.25098,150.65,150.59,16.4987184]
[1727297574051,0.12549,150.6,150.59,16.4987184]
[1727297574371,0.12549,150.6,150.59,0.4203184]
[1727297577374,0.25098,150.6,150.59,0.4203184]
[1727297577676,6.89108,150.6,150.59,0.4203184]
[1727297580997,0.25098,150.6,150.59,0.4203184]
[1727297581891,0.12549,150.6,150.59,0.4203184]
[1727297582679,6.639,150.63,150.59,7.0608184]
[1727297582859,6.639,150.63,150.59,0.4203184]
[1727297583961,0.12549,150.62,150.59,0.4203184]
[1727297584167,0.25098,150.62,150.59,0.4203184]
[1727297584883,0.25098,150.62,150.59,7.0606184]
[1727297585983,0.25098,150.63,150.6,6.6399]
[1727297586284,16.593,150.67,150.6,6.6399]
[1727297586285,16.5901,150.7,150.6,33.76415813]
[1727297586666,23.52493278,150.7,150.6,33.76415813]
[1727297586868,23.52493278,150.7,150.62,16.5977]
[1727297587573,6.6374,150.67,150.62,23.2367]
[1727297587897,6.6375,150.66,150.62,23.2367]
[1727297588183,0.25098,150.65,150.62,23.2367]
[1727297592090,0.12549,150.65,150.62,23.2367]
[1727297600390,0.12549,150.65,150.62,16.5977]
[1727297600693,20.0,150.69,150.65,6.6375]
[1727297601579,6.6359,150.7,150.65,22.2867]
[1727297601781,0.25098,150.69,150.65,22.2867]
[1727297601983,0.25098,150.69,150.66,6.6373]
[1727297602292,6.6359,150.7,150.66,6.6373]
[1727297603674,0.25098,150.69,150.66,6.6373]
[1727297605269,0.12549,150.69,150.66,6.6373]
[1727297609601,0.12549,150.69,150.66,7.96462832]
[1727297610310,0.25098,150.7,150.67,6.637]
[1727297613393,6.88668,150.7,150.67,6.637]
[1727297616612,0.25098,150.7,150.67,6.637]
[1727297618733,0.25098,150.7,150.66,16.5933]
[1727297618898,6.88668,150.7,150.66,23.2305]
[1727297619214,0.25098,150.7,150.67,6.6369]
[1727297621608,0.12549,150.7,150.67,6.6369]
[1727297628495,0.12549,150.7,150.66,16.5933]
[1727297628701,0.12549,150.71,150.69,6.6361]
[1727297629009,0.12549,150.72,150.69,7.96315856]
[1727297629323,0.12549,150.72,150.69,6.6361]
[1727297633316,0.12549,150.72,150.69,7.96316782]
[1727297633931,0.12549,150.72,150.69,6.6361]
[1727297638543,0.12549,150.72,150.66,13.52027119]
[1727297638544,0.25098,150.73,150.7,16.5886]
[1727297638831,0.25098,150.73,150.7,23.2241]
[1727297639527,0.25098,150.74,150.7,23.2241]
[1727297639828,0.12549,150.72,150.7,16.5886]
[1727297640816,24.027864,150.72,150.65,15.6492]
[1727297641020,0.12549,150.68,150.65,22.2869]
[1727297641420,6.6371,150.67,150.64,16.5949]
[1727297641834,0.12549,150.66,150.64,16.5949]
[1727297646444,0.25098,150.67,150.64,16.5949]
[1727297646849,0.25098,150.67,150.65,1.32754022]
[1727297647025,6.6358,150.7,150.65,6.6377]
[1727297647850,20.0,150.72,150.67,16.5923]
[1727297648352,26.635,150.72,150.68,6.6365]
[1727297648526,26.635,150.72,150.67,23.2291]
[1727297648725,6.6353,150.71,150.67,23.2291]
[1727297650041,0.12549,150.7,150.67,23.2291]
[1727297650543,0.25098,150.71,150.67,23.2291]
[1727297651342,0.25098,150.71,150.67,16.5923]
[1727297651653,6.6345,150.73,150.69,6.6361]
[1727297651830,13.82574982,150.75,150.71,6.6351]
[1727297652025,6.8809821,150.75,150.71,6.6351]
[1727297653030,0.25098,150.74,150.71,6.6351]
[1727297656621,6.88488,150.74,150.7,6.6355]
[1727297662446,0.12549,150.74,150.7,13.52027119]
[1727297662764,0.2471821,150.75,150.74,6.6339]
[1727297663585,0.2471821,150.75,150.73,23.2196]
[1727297666364,0.12549,150.74,150.71,16.0028]
[1727297666880,0.12549,150.74,150.71,22.638]
[1727297669873,0.25098,150.74,150.7,16.5884]
[1727297670078,6.6343,150.73,150.7,16.5884]
[1727297670377,0.12549,150.72,150.7,16.5884]
[1727297674778,0.12549,150.72,150.66,22.4047]
[1727297674992,6.76039,150.72,150.68,6.6364]
[1727297675156,0.12549,150.71,150.68,6.6364]
[1727297675875,6.76079,150.71,150.67,23.2286]
[1727297676090,6.76079,150.71,150.68,6.6365]
[1727297676369,0.12549,150.71,150.68,6.6365]
[1727297679776,0.12549,150.71,150.67,16.5917]
[1727297679979,6.76069,150.71,150.67,23.2282]
[1727297680676,0.12549,150.71,150.68,6.6364]
[1727297684984,0.12549,150.71,150.68,7.96352772]
[1727297686584,0.12549,150.71,150.68,6.6364]
[1727297701395,0.12549,150.71,150.68,7.96352843]
[1727297702495,0.12549,150.71,150.68,6.6364]
[1727297705680,0.12549,150.71,150.68,7.96352738]
[1727297706398,0.12549,150.71,150.68,6.6364]
[1727297709597,6.76099,150.71,150.67,23.2284]
[1727297709996,6.6357,150.7,150.67,23.2284]
[1727297710299,6.6357,150.7,150.67,16.5917]
[1727297710503,6.6369,150.68,150.64,23.2332]
[1727297710707,0.12549,150.67,150.64,23.2332]
[1727297711102,6.76249,150.67,150.64,16.5951]
[1727297712695,0.12549,150.67,150.65,6.6378]
[1727297713706,0.12549,150.67,150.64,23.2333]
[1727297719401,6.76249,150.67,150.64,16.5951]
[1727297721415,0.12549,150.67,150.64,16.5951]
[1727297721593,0.12549,150.67,150.64,23.2332]
[1727297723706,6.76249,150.67,150.64,23.2332]
[1727297724699,6.76249,150.67,150.64,16.5951]
[1727297727322,6.6374,150.66,150.63,6.6386]
[1727297727821,0.12549,150.65,150.62,6.6389]
[1727297728626,6.6383,150.64,150.61,16.5985]
[1727297728825,0.12549,150.63,150.61,16.5985]
[1727297729025,0.12549,150.61,150.59,0.4203184]
[1727297729205,6.76509,150.61,150.59,0.4203184]
[1727297729517,6.76559,150.6,150.59,0.4203184]
[1727297730501,0.12549,150.6,150.59,0.4203184]
[1727297734932,0.25098,150.6,150.59,0.4203184]
[1727297735104,6.89108,150.6,150.59,0.4203184]
[1727297737015,30.667964,150.6,150.59,0.4203184]
[1727297737930,50.667964,150.6,150.59,0.4203184]
[1727297746816,20.25098,150.6,150.59,0.4203184]
[1727297747227,26.89108,150.6,150.59,0.4203184]
[1727297748530,50.667964,150.6,150.59,0.4203184]
[1727297755238,6.89278,150.56,150.55,0.2471821]
[1727297759222,30.669664,150.56,150.55,0.2471821]
[1727297760530,24.027864,150.56,150.55,0.2471821]
[1727297760733,30.669664,150.56,150.55,0.2471821]
[1727297765348,6.6418,150.56,150.55,0.2471821]
[1727297766928,6.89278,150.56,150.55,0.2471821]
[1727297773143,0.25098,150.56,150.55,0.2471821]
[1727297773351,0.25098,150.56,150.55,6.8894821]
[1727297773680,0.12549,150.56,150.55,22.0663821]
[1727297778366,0.25098,150.56,150.55,0.2471821]
[1727297783989,6.89278,150.56,150.55,0.2471821]
[1727297785695,30.669664,150.56,150.55,0.2471821]
[1727297795207,6.89278,150.56,150.55,0.2471821]
[1727297807303,0.25098,150.56,150.55,0.2471821]
[1727297807519,0.25098,150.56,150.55,6.8894821]
[1727297807722,0.25098,150.56,150.55,0.2471821]
[1727297821139,0.12549,150.56,150.55,0.2471821]
[1727297829247,6.94767888,150.61,150.58,6.6408]
[1727297829450,6.94767888,150.61,150.59,6.6402]
[1727297829622,6.6388,150.63,150.58,23.2423]
[1727297831120,0.25098,150.62,150.58,23.2423]
[1727297834145,6.89018,150.62,150.58,23.2423]
[1727297834722,0.25098,150.62,150.56,15.8016]
[1727297834927,6.89158,150.59,150.56,15.8016]
[1727297835137,0.25098,150.59,150.56,15.8016]
[1727297835455,0.12549,150.59,150.58,6.6409]
[1727297836438,6.6385,150.64,150.59,6.6403]
[1727297836645,6.6385,150.64,150.6,6.6399]
[1727297837227,6.6379,150.65,150.61,6.6395]
[1727297837430,6.93993314,150.66,150.61,6.6395]
[1727297837431,13.57753314,150.66,150.62,7.966885]
[1727297837830,13.57753314,150.66,150.61,38.9879]
[1727297838052,6.6376,150.66,150.61,38.9879]
[1727297838268,6.6374,150.67,150.62,7.9666232]
[1727297838427,6.6374,150.67,150.62,6.6389]
[1727297839060,6.6376,150.66,150.61,38.9879]
[1727297839241,6.6379,150.65,150.61,32.3484]
[1727297839557,0.25098,150.64,150.61,32.3484]
[1727297842060,0.12549,150.64,150.62,6.6388]
[1727297842236,26.6367,150.68,150.63,6.6387]
[1727297842435,6.6367,150.68,150.64,6.6383]
[1727297843244,6.6367,150.68,150.63,6.6387]
[1727297843558,0.25098,150.67,150.63,6.6387]
[1727297844353,6.88798,150.67,150.62,6.639]
[1727297845439,6.88798,150.67,150.63,6.6387]
[1727297845641,30.01168209,150.71,150.64,14.84778992]
[1727297845642,20.0,150.7,150.64,14.84778992]
[1727297845943,6.6358,150.7,150.66,6.6373]
[1727297846260,0.2471821,150.71,150.67,17.91936624]
[1727297846466,0.2471821,150.71,150.68,6.6365]
[1727297846945,0.2471821,150.71,150.67,32.557]
[1727297847151,0.2471821,150.71,150.67,39.1938]
[1727297848550,0.12549,150.7,150.67,39.1938]
[1727297848955,0.25098,150.7,150.67,39.1938]
[1727297849258,0.25098,150.7,150.65,6.6377]
[1727297849259,0.12549,150.68,150.65,6.6377]
[1727297850457,0.12549,150.68,150.66,1.32736062]
[1727297850656,0.25098,150.7,150.66,23.2303]
[1727297850839,6.88678,150.7,150.66,23.2303]
[1727297851555,0.12549,150.68,150.66,16.593]
[1727297851740,6.88758,150.68,150.64,6.6383]
[1727297852740,6.88758,150.68,150.63,39.0268]
[1727297852939,0.12549,150.66,150.63,39.0268]
[1727297853642,0.25098,150.67,150.63,39.0268]
[1727297853962,6.88808,150.67,150.63,39.0268]
[1727297857366,0.25098,150.67,150.63,32.3882]
[1727297857568,0.25098,150.69,150.65,6.6378]
[1727297857862,0.25098,150.69,150.67,6.6366]
[1727297858069,6.88708,150.69,150.66,16.5933]
[1727297858566,0.25098,150.69,150.66,23.2304]
[1727297860770,6.88718,150.69,150.66,16.5933]
[1727297861252,6.88718,150.69,150.63,15.7918]
[1727297861253,0.25098,150.69,150.63,15.7918]
[1727297861459,0.12549,150.67,150.64,6.6382]
[1727297861651,0.12549,150.67,150.65,6.6377]
[1727297861852,0.12549,150.67,150.66,1.32735204]
[1727297862258,0.12549,150.68,150.65,6.6377]
[1727297864260,6.8824821,150.71,150.67,6.637]
[1727297864576,6.8824821,150.71,150.68,7.96368438]
[1727297864763,0.2471821,150.71,150.68,6.6365]
[1727297865568,0.12549,150.7,150.68,6.6365]
[1727297865951,0.12549,150.7,150.69,6.6361]
[1727297866555,0.2471821,150.71,150.7,6.6357]
[1727297866752,0.2471821,150.71,150.7,7.96265576]
[1727297868284,0.2471821,150.71,150.7,6.6357]
[1727297868576,0.2471821,150.71,150.69,16.5899]
[1727297870572,0.2471821,150.71,150.69,23.226]
[1727297870894,0.2471821,150.71,150.69,24.55306454]
[1727297872493,0.2471821,150.71,150.69,17.91696416]
[1727297872701,0.2471821,150.71,150.7,6.6357]
[1727297875181,0.2471821,150.71,150.7,7.96266827]
[1727297875387,0.2471821,150.71,150.7,6.6357]
[1727297879671,0.2471821,150.71,150.69,16.5899]
[1727297879672,0.12549,150.7,150.69,16.5899]
[1727297888305,0.12549,150.7,150.69,23.226]
[1727297888520,0.2471821,150.71,150.7,6.6357]
[1727297888685,0.2471821,150.71,150.7,7.96262227]
[1727297890878,0.2471821,150.71,150.7,6.6357]
[1727297891908,0.2471821,150.71,150.7,7.96249697]
[1727297892598,0.2471821,150.75,150.74,6.6339]
[1727297892806,0.2471821,150.75,150.74,21.48062355]
[1727297894389,0.2471821,150.75,150.74,20.15417119]
[1727297894591,0.2471821,150.75,150.74,6.6339]
[1727297896406,0.2471821,150.75,150.73,23.2195]
[1727297896794,0.2471821,150.75,150.74,7.96056882]
[1727297897299,0.2471821,150.75,150.74,6.6339]
[1727297898611,0.2471821,150.75,150.74,7.96045297]
[1727297899017,0.2471821,150.75,150.74,6.6339]
[1727297899387,0.2471821,150.75,150.74,7.96039188]
[1727297899585,0.2471821,150.75,150.74,21.48066307]
[1727297899789,0.2471821,150.75,150.74,35.54437119]
[1727297899989,0.2471821,150.75,150.74,22.0241]
[1727297902324,0.2471821,150.75,150.74,35.54437119]
[1727297902696,0.2471821,150.75,150.74,22.0241]
[1727297903310,0.2471821,150.75,150.74,6.6339]
[1727297907315,0.2471821,150.75,150.73,23.2195]
[1727297907521,0.2471821,150.75,150.74,1.32655671]
[1727297907816,0.2471821,150.75,150.74,6.6339]
[1727297916017,0.2471821,150.75,150.74,7.96045679]
[1727297917610,0.2471821,150.75,150.74,6.6339]
[1727297919924,0.12549,150.74,150.7,32.733]
[1727297920129,0.25098,150.74,150.66,15.2126]
[1727297920298,6.6349,150.72,150.68,6.6362]
[1727297920502,0.12549,150.72,150.69,6.636]
[1727297922531,0.25098,150.72,150.69,6.636]
[1727297925329,6.88588,150.72,150.68,6.6364]
[1727297926623,6.6352,150.71,150.67,23.2284]
[1727297926830,0.12549,150.7,150.67,23.2284]
[1727297930725,0.25098,150.7,150.62,49.0425]
[1727297931234,6.88668,150.7,150.66,23.2307]
[1727297934631,0.25098,150.7,150.66,16.5934]
[1727297934932,0.12549,150.68,150.66,16.5934]
[1727297936310,6.6373,150.67,150.63,23.2345]
[1727297936529,0.12549,150.66,150.63,23.2345]
[1727297941026,0.25098,150.67,150.64,6.6383]
[1727297942110,0.25098,150.67,150.66,6.6374]
[1727297942111,0.12549,150.67,150.66,6.6374]
[1727297942317,6.636,150.7,150.66,7.96478702]
[1727297942624,6.636,150.7,150.66,1.32738702]
[1727297942823,6.636,150.7,150.67,6.637]
[1727297943222,19.7681,150.74,150.68,1.32730327]
[1727297943223,20.0,150.73,150.68,1.32730327]
[1727297943424,6.6348,150.72,150.68,6.6364]
[1727297943631,6.6352,150.71,150.67,6.6368]
[1727297944543,0.12549,150.7,150.67,6.6368]
[1727297944847,0.12549,150.7,150.67,6.6369]
[1727297946830,0.25098,150.7,150.67,6.6369]
[1727297948951,6.88668,150.7,150.66,23.2301]
[1727297950050,6.88668,150.7,150.66,17.92006534]
[1727297950250,6.88668,150.7,150.67,6.637]
[1727297955758,0.12549,150.68,150.66,16.5928]
[1727297957252,0.12549,150.68,150.65,6.6376]
[1727297957253,6.88748,150.68,150.65,6.6376]
[1727297957450,6.88748,150.68,150.64,6.6382]
[1727297958053,0.25098,150.68,150.63,16.596]
[1727297958355,0.25098,150.68,150.64,6.6383]
[1727297958654,0.12549,150.66,150.64,6.6383]
[1727297959860,0.12549,150.66,150.63,16.596]
[1727297960157,0.12549,150.66,150.63,23.2346]
[1727297960544,6.6388,150.63,150.57,16.133]
[1727297960756,0.12549,150.63,150.59,6.8875821]
[1727297960941,0.12549,150.63,150.6,6.64]
[1727297961461,0.25098,150.64,150.6,6.64]
[1727297965860,0.25098,150.64,150.61,6.6396]
[1727297969864,6.88958,150.64,150.6,6.64]
[1727297970862,6.88958,150.64,150.59,16.8477821]
[1727297970863,0.12549,150.64,150.62,6.6388]
[1727297971064,26.6375,150.66,150.62,6.6388]
[1727297972858,0.12549,150.65,150.62,6.6388]
[1727297973062,6.88888,150.65,150.61,23.2384]
[1727297973271,0.25098,150.63,150.61,16.5989]
[1727297978458,0.25098,150.63,150.59,0.2471821]
[1727297978766,6.88978,150.63,150.59,6.8873821]
[1727297980470,6.88978,150.63,150.6,6.64]
[1727297980471,0.25098,150.63,150.6,6.64]
[1727297981167,0.25098,150.63,150.6,16.6001]
[1727297981358,0.12549,150.63,150.62,6.6392]
[1727297981764,20.0,150.65,150.62,6.6392]
[1727297982451,6.6377,150.66,150.62,6.6392]
[1727297983068,0.25098,150.65,150.62,6.6392]
[1727297998364,0.25098,150.65,150.64,6.6383]
[1727297998564,0.12549,150.65,150.64,6.6383]
[1727297998786,6.6358,150.7,150.64,16.5952]
[1727297998983,23.52056564,150.73,150.66,6.6371]
[1727297999182,6.6357,150.7,150.66,6.6371]
[1727298000591,6.93396564,150.73,150.67,17.64846974]
[1727298000767,0.2471821,150.75,150.67,17.64846974]
[1727298000968,0.2471821,150.75,150.67,16.3212]
[1727298001502,6.6344,150.73,150.69,6.636]
[1727298001867,0.25098,150.72,150.69,6.636]
[1727298002185,0.25098,150.72,150.68,23.2275]
[1727298002378,20.25098,150.73,150.7,6.6354]